bitfinex/quotes_SOLUSD_20241218
["timestamp","ask_amount","ask_price","bid_price","bid_amount"]
[1734547583802,14.03171354,216.12,216.05,14.03171354]
[1734547584104,14.03171354,216.1,216.04,14.03171354]
[1734547584403,14.03171354,216.1,216.03,14.03171354]
[1734547584774,14.03171354,216.11,216.03,14.03171354]
[1734547585199,14.03171354,216.1,216.03,14.03171354]
[1734547585398,14.03171354,216.11,216.03,14.03171354]
[1734547585704,34.03171354,216.13,216.06,14.03171354]
[1734547586506,7.3298,216.21,216.08,14.03171354]
[1734547586801,14.03171354,216.18,216.11,14.03171354]
[1734547587010,14.03171354,216.2,216.12,14.03171354]
[1734547587506,14.03171354,216.2,216.08,1.6161]
[1734547587507,14.03171354,216.21,216.13,14.03171354]
[1734547588111,14.03171354,216.23,216.15,14.03171354]
[1734547588308,14.03171354,216.21,216.13,14.03171354]
[1734547588728,14.03171354,216.21,216.14,14.03171354]
[1734547588924,14.03171354,216.21,216.13,14.03171354]
[1734547589918,14.03171354,216.22,216.15,14.03171354]
[1734547590213,6.1735,216.26,216.15,14.03171354]
[1734547590214,14.03171354,216.23,216.15,14.03171354]
[1734547590427,14.03171354,216.23,216.16,14.03171354]
[1734547590936,14.03171354,216.23,216.15,14.03171354]
[1734547591433,1.1559,216.28,216.19,14.03171354]
[1734547591591,14.03171354,216.27,216.2,14.03171354]
[1734547591794,14.03171354,216.28,216.21,14.03171354]
[1734547592093,14.03171354,216.26,216.19,14.03171354]
[1734547592294,14.03171354,216.25,216.18,34.03171354]
[1734547592497,14.03171354,216.26,216.18,34.03171354]
[1734547593106,14.03171354,216.25,216.18,14.03171354]
[1734547593309,14.03171354,216.23,216.17,1.654]
[1734547593499,14.03171354,216.23,216.15,14.03171354]
[1734547593706,14.03171354,216.26,216.18,14.03171354]
[1734547593907,14.03171354,216.24,216.17,14.03171354]
[1734547594597,14.03171354,216.22,216.14,14.03171354]
[1734547594799,14.03171354,216.21,216.14,14.03171354]
[1734547595002,14.03171354,216.23,216.15,14.03171354]
[1734547595925,14.03171354,216.22,216.14,14.03171354]
[1734547597792,14.03171354,216.22,216.15,14.03171354]
[1734547599614,14.03171354,216.23,216.16,14.03171354]
[1734547600512,14.03171354,216.24,216.16,14.03171354]
[1734547602027,14.03171354,216.23,216.16,14.03171354]
[1734547602327,14.03171354,216.24,216.16,14.03171354]
[1734547603441,14.03171354,216.23,216.16,14.03171354]
[1734547604520,14.03171354,216.21,216.14,14.03171354]
[1734547604723,14.03171354,216.2,216.13,14.03171354]
[1734547605448,14.03171354,216.21,216.13,14.03171354]
[1734547605948,14.03171354,216.21,216.14,14.03171354]
[1734547606844,20.0,216.28,216.19,14.03171354]
[1734547607054,14.03171354,216.26,216.19,14.03171354]
[1734547607350,14.03171354,216.26,216.18,14.03171354]
[1734547607520,1.156,216.27,216.14,0.69391867]
[1734547607521,14.03171354,216.27,216.2,14.03171354]
[1734547608144,14.03171354,216.28,216.2,14.03171354]
[1734547608419,14.03171354,216.28,216.21,14.03171354]
[1734547608723,15.18751354,216.3,216.22,14.03171354]
[1734547609121,14.03171354,216.28,216.21,15.64941354]
[1734547609948,14.03171354,216.28,216.21,1.6177]
[1734547610157,14.03171354,216.26,216.19,14.03171354]
[1734547610759,14.03171354,216.26,216.18,14.03171354]
[1734547610934,14.03171354,216.24,216.17,14.03171354]
[1734547611135,14.03171354,216.23,216.16,14.03171354]
[1734547612739,1.1561,216.25,199.87,25.0]
[1734547612740,14.03171354,216.21,216.14,14.03171354]
[1734547612938,14.03171354,216.21,216.13,14.03171354]
[1734547613344,14.03171354,216.22,216.14,14.03171354]
[1734547613539,14.03171354,216.2,216.13,14.03171354]
[1734547613860,14.03171354,216.21,216.14,14.03171354]
[1734547614466,14.03171354,216.21,216.13,14.03171354]
[1734547615134,14.03171354,216.19,216.12,14.03171354]
[1734547615335,14.03171354,216.2,216.12,14.03171354]
[1734547615859,14.03171354,216.21,216.13,14.03171354]
[1734547616063,14.03171354,216.2,216.12,14.03171354]
[1734547616264,14.03171354,216.19,216.11,14.03171354]
[1734547616441,14.03171354,216.2,216.13,14.03171354]
[1734547616765,14.03171354,216.21,216.13,14.03171354]
[1734547617759,15.18791354,216.22,216.14,14.03171354]
[1734547618367,14.03171354,216.21,216.14,14.03171354]
[1734547619345,14.03171354,216.19,216.1,14.03171354]
[1734547620037,14.03171354,216.19,216.11,14.03171354]
[1734547624956,14.03171354,216.17,216.09,14.03171354]
[1734547626556,8.96355417,216.18,216.1,8.96355417]
[1734547627059,1.1563,216.19,216.12,8.96355417]
[1734547627256,1.1562,216.22,216.16,8.96355417]
[1734547627444,10.11955417,216.26,216.19,8.96355417]
[1734547627837,2.6782,216.3,216.19,8.96355417]
[1734547628061,8.96355417,216.26,216.19,8.96355417]
[1734547628245,1.1558,216.3,216.21,8.96355417]
[1734547628448,8.96355417,216.28,216.21,8.96355417]
[1734547629165,8.96355417,216.29,216.21,8.96355417]
[1734547629945,13.99124916,216.29,216.21,13.99124916]
[1734547630982,13.99124916,216.29,216.22,13.99124916]
[1734547631338,1.1558,216.3,216.24,13.99124916]
[1734547631543,13.99124916,216.32,216.24,13.99124916]
[1734547632043,13.99124916,216.33,216.25,13.99124916]
[1734547632540,13.99124916,216.31,216.24,13.99124916]
[1734547632739,13.99124916,216.33,216.26,13.99124916]
[1734547632982,15.14684916,216.34,216.27,13.99124916]
[1734547633341,13.99124916,216.34,216.27,13.99124916]
[1734547634267,13.99124916,216.33,216.26,13.99124916]
[1734547635939,13.99124916,216.33,216.25,20.31934916]
[1734547637246,0.12549,216.37,216.26,13.99124916]
[1734547637465,13.99124916,216.34,216.26,13.99124916]
[1734547638552,13.99124916,216.3,216.23,13.99124916]
[1734547638952,13.99124916,216.31,216.24,13.99124916]
[1734547639267,13.99124916,216.32,216.25,13.99124916]
[1734547639952,13.99124916,216.34,216.26,13.99124916]
[1734547640675,13.99124916,216.35,216.27,13.99124916]
[1734547640848,13.99124916,216.35,216.28,13.99124916]
[1734547641047,13.99124916,216.36,216.29,1.6333]
[1734547641348,13.99124916,216.37,216.3,13.99124916]
[1734547641674,15.14654916,216.39,216.31,13.99124916]
[1734547641855,13.99124916,216.39,216.32,13.99124916]
[1734547642060,13.99124916,216.4,216.32,13.99124916]
[1734547642571,0.5584263,216.41,216.35,13.99124916]
[1734547642889,14.54967546,216.41,216.34,13.99124916]
[1734547643390,14.54967546,216.41,216.33,13.99124916]
[1734547644608,14.54967546,216.41,216.34,13.99124916]
[1734547645379,0.5584263,216.41,216.34,13.99124916]
[1734547645692,0.5584263,216.41,216.39,13.99124916]
[1734547645855,0.5584263,216.41,216.4,13.99124916]
[1734547646469,0.5584263,216.41,216.4,38.46107319]
[1734547647106,13.99124916,216.54,216.41,23.776884]
[1734547647257,13.99124916,216.54,216.46,13.99124916]
[1734547647258,13.99124916,216.53,216.46,13.99124916]
[1734547648168,0.84333975,216.54,216.41,23.776884]
[1734547648169,13.99124916,216.51,216.44,13.99124916]
[1734547648584,13.99124916,216.47,216.39,1.6151]
[1734547648783,13.99124916,216.47,216.39,15.60634916]
[1734547649198,13.99124916,216.46,216.39,15.60634916]
[1734547650076,13.99124916,216.46,216.39,1.6151]
[1734547650306,13.99124916,216.46,216.37,20.42254916]
[1734547650506,13.99124916,216.46,216.38,13.99124916]
[1734547653499,13.99124916,216.44,216.36,13.99124916]
[1734547653980,13.99124916,216.46,216.39,13.99124916]
[1734547654380,33.99124916,216.48,216.4,13.99124916]
[1734547655205,13.99124916,216.46,216.39,13.99124916]
[1734547656598,13.99124916,216.46,216.38,13.99124916]
[1734547656797,13.99124916,216.45,216.37,13.99124916]
[1734547657194,13.99124916,216.43,216.35,13.99124916]
[1734547658394,13.99124916,216.44,216.37,13.99124916]
[1734547658599,13.99124916,216.45,216.37,13.99124916]
[1734547659109,13.99124916,216.47,216.4,13.99124916]
[1734547659716,13.99124916,216.46,216.39,13.99124916]
[1734547659902,13.99124916,216.46,216.38,13.99124916]
[1734547660325,13.99124916,216.47,216.39,13.99124916]
[1734547662702,13.99124916,216.45,216.37,13.99124916]
[1734547666028,8.94169828,216.45,216.36,8.94169828]
[1734547667230,8.94169828,216.39,216.34,1.5415]
[1734547668003,8.94169828,216.4,216.34,1.5415]
[1734547668333,13.97613239,216.41,216.34,1.5415]
[1734547669934,15.13133239,216.41,216.34,1.5415]
[1734547670621,13.97613239,216.36,216.29,13.97613239]
[1734547670828,13.97613239,216.34,216.26,21.60043239]
[1734547671042,13.97613239,216.32,216.26,7.6243]
[1734547671344,13.97613239,216.32,216.26,1.5846]
[1734547671710,13.97613239,216.33,216.26,15.56073239]
[1734547672536,13.97613239,216.33,216.26,1.5846]
[1734547673039,13.97613239,216.33,216.26,15.56073239]
[1734547673553,13.97613239,216.34,216.26,15.56073239]
[1734547673849,13.97613239,216.32,216.26,15.56073239]
[1734547674338,13.97613239,216.33,216.26,15.56073239]
[1734547674724,0.12549,216.39,216.26,15.56073239]
[1734547674725,13.97613239,216.34,216.26,15.56073239]
[1734547676545,13.97613239,216.32,216.26,1.5846]
[1734547677410,13.97613239,216.3,216.23,13.97613239]
[1734547678816,13.97613239,216.31,216.23,13.97613239]
[1734547679019,13.97613239,216.37,216.3,13.97613239]
[1734547679332,109.35024293,216.48,216.25,13.97613239]
[1734547679333,13.97613239,216.32,216.25,13.97613239]
[1734547679739,13.97613239,216.31,216.24,13.97613239]
[1734547681428,13.97613239,216.29,216.22,13.97613239]
[1734547682346,13.97613239,216.28,216.21,21.60123239]
[1734547683823,13.97613239,216.3,216.23,13.97613239]
[1734547684434,13.97613239,216.32,216.25,13.97613239]
[1734547684669,13.97613239,216.35,216.27,13.97613239]
[1734547684960,13.97613239,216.35,216.28,13.97613239]
[1734547685254,13.97613239,216.35,216.27,13.97613239]
[1734547686065,0.12549,216.37,216.26,13.97613239]
[1734547686236,13.97613239,216.33,216.25,13.97613239]
[1734547687060,13.97613239,216.3,216.22,37.75301639]
[1734547687365,13.97613239,216.29,216.22,13.97613239]
[1734547687529,13.97613239,216.28,216.21,21.60123239]
[1734547687865,13.97613239,216.3,216.22,13.97613239]
[1734547688672,13.97613239,216.31,216.24,13.97613239]
[1734547688967,13.97613239,216.3,216.23,13.97613239]
[1734547691165,13.97613239,216.3,216.22,13.97613239]
[1734547692466,13.97613239,216.29,216.21,15.56153239]
[1734547693066,13.97613239,216.3,216.23,13.97613239]
[1734547694351,13.97613239,216.31,216.24,13.97613239]
[1734547694676,13.97613239,216.34,216.26,13.97613239]
[1734547694839,13.97613239,216.35,216.27,13.97613239]
[1734547695040,13.97613239,216.35,216.28,13.97613239]
[1734547696161,0.12549,216.35,216.29,13.97613239]
[1734547696876,13.97613239,216.37,216.29,13.97613239]
[1734547697057,13.97613239,216.37,216.3,13.97613239]
[1734547697590,13.97613239,216.38,216.3,13.97613239]
[1734547697869,13.97613239,216.4,216.33,13.97613239]
[1734547698249,0.12549,216.4,216.34,13.97613239]
[1734547698951,13.97613239,216.37,216.3,15.60433239]
[1734547699160,0.12549,216.42,216.3,1.6282]
[1734547699161,13.97613239,216.36,216.3,1.6282]
[1734547700374,13.97613239,216.37,216.3,1.6282]
[1734547702183,13.97613239,216.36,216.3,1.6282]
[1734547703974,13.97613239,216.35,216.3,1.6282]
[1734547704483,13.97613239,216.36,216.3,1.6282]
[1734547704848,13.97613239,216.38,216.31,13.97613239]
[1734547705053,13.97613239,216.39,216.32,13.97613239]
[1734547705570,13.97613239,216.38,216.31,13.97613239]
[1734547706366,13.97613239,216.4,216.33,13.97613239]
[1734547706779,13.97613239,216.42,216.34,13.97613239]
[1734547707251,13.97613239,216.41,216.34,13.97613239]
[1734547709993,8.94445228,216.41,216.33,8.94445228]
[1734547710600,8.94445228,216.4,216.33,8.94445228]
[1734547711697,8.94445228,216.43,216.36,8.94445228]
[1734547711873,8.94445228,216.45,216.38,8.94445228]
[1734547712051,8.94445228,216.45,216.35,23.776884]
[1734547712252,8.94445228,216.45,216.38,8.94445228]
[1734547712955,8.94445228,216.43,216.36,8.94445228]
[1734547713264,8.94445228,216.42,216.35,32.72133628]
[1734547713601,8.94445228,216.38,216.31,8.94445228]
[1734547713752,8.94445228,216.37,216.3,10.57265228]
[1734547714089,8.94445228,216.36,216.3,1.6282]
[1734547714255,8.94445228,216.37,216.3,10.57265228]
[1734547715997,13.98016688,216.37,216.3,15.60836688]
[1734547716207,0.12549,216.4,216.31,13.98016688]
[1734547716208,13.98016688,216.38,216.31,13.98016688]
[1734547716812,13.98016688,216.39,216.31,13.98016688]
[1734547717285,13.98016688,216.38,216.31,13.98016688]
[1734547717800,13.98016688,216.37,216.3,15.60836688]
[1734547718294,13.98016688,216.38,216.31,13.98016688]
[1734547719305,13.98016688,216.39,216.31,13.98016688]
[1734547719485,13.98016688,216.38,216.3,15.60836688]
[1734547720805,13.98016688,216.39,216.31,13.98016688]
[1734547721997,13.98016688,216.41,216.34,13.98016688]
[1734547723396,13.98016688,216.41,216.33,13.98016688]
[1734547723702,13.98016688,216.39,216.32,13.98016688]
[1734547726212,13.98016688,216.4,216.32,13.98016688]
[1734547727171,13.98016688,216.38,216.3,15.60836688]
[1734547728702,13.98016688,216.38,216.31,13.98016688]
[1734547729806,13.98016688,216.39,216.32,13.98016688]
[1734547730907,13.98016688,216.38,216.31,13.98016688]
[1734547731309,13.98016688,216.38,216.3,15.60836688]
[1734547733601,13.98016688,216.4,216.32,13.98016688]
[1734547734809,13.98016688,216.38,216.3,15.60836688]
[1734547736009,8.94660359,216.38,216.3,10.57480359]
[1734547738108,8.94660359,216.4,216.32,8.94660359]
[1734547739184,8.94660359,216.38,216.3,10.57480359]
[1734547739512,8.94660359,216.36,216.28,8.94660359]
[1734547740297,8.94660359,216.38,216.3,8.94660359]
[1734547741629,21.6308,216.41,216.31,8.94660359]
[1734547741791,8.94660359,216.39,216.31,8.94660359]
[1734547743937,8.94660359,216.37,216.29,8.94660359]
[1734547746390,8.94660359,216.37,216.31,8.94660359]
[1734547747221,8.94660359,216.39,216.31,8.94660359]
[1734547749815,8.94660359,216.37,216.26,23.776884]
[1734547750007,8.94660359,216.37,216.29,8.94660359]
[1734547750208,8.94660359,216.37,216.26,23.776884]
[1734547750422,8.94660359,216.33,216.25,1.6311]
[1734547750714,8.94660359,216.3,216.23,8.94660359]
[1734547750909,8.94660359,216.3,216.22,8.94660359]
[1734547751411,8.94660359,216.3,216.23,8.94660359]
[1734547751800,8.94660359,216.3,216.2,1.5559]
[1734547752002,8.94660359,216.29,216.22,8.94660359]
[1734547752318,8.94660359,216.29,216.21,8.94660359]
[1734547752932,8.94660359,216.29,216.22,8.94660359]
[1734547753644,8.94660359,216.31,216.23,8.94660359]
[1734547753820,8.94660359,216.3,216.23,8.94660359]
[1734547755754,8.94660359,216.3,216.2,1.5559]
[1734547755755,8.94660359,216.3,216.22,8.94660359]
[1734547756435,8.94660359,216.3,216.23,8.94660359]
[1734547756652,8.94660359,216.3,216.22,8.94660359]
[1734547759451,8.94660359,216.29,216.22,8.94660359]
[1734547760446,8.94660359,216.29,216.21,8.94660359]
[1734547761077,8.94660359,216.29,216.22,8.94660359]
[1734547761670,8.94660359,216.29,216.21,8.94660359]
[1734547762976,8.94660359,216.25,216.17,23.776884]
[1734547763133,8.94660359,216.23,216.16,10.49630359]
[1734547763339,8.94660359,216.22,216.16,1.5497]
[1734547764834,8.94660359,216.23,216.16,10.49630359]
[1734547765261,8.94660359,216.23,216.16,1.5497]
[1734547765968,8.94660359,216.22,216.16,1.5497]
[1734547768254,8.94660359,216.23,216.16,1.5497]
[1734547771292,8.94660359,216.23,216.16,10.49630359]
[1734547771582,8.94660359,216.26,216.18,8.94660359]
[1734547771791,2.7519,216.3,216.17,8.94660359]
[1734547771792,8.94660359,216.25,216.17,8.94660359]
[1734547772648,8.94660359,216.23,216.16,10.49630359]
[1734547772852,8.94660359,216.22,216.16,1.5497]
[1734547773381,8.94660359,216.21,216.16,1.5497]
[1734547773572,8.94660359,216.21,216.13,8.94660359]
[1734547773955,8.94660359,216.2,216.12,28.94660359]
[1734547774589,8.94660359,216.21,216.13,8.94660359]
[1734547775085,8.94660359,216.21,216.14,8.94660359]
[1734547775589,8.94660359,216.22,216.15,8.94660359]
[1734547775951,1.1561,216.24,216.12,20.0]
[1734547775952,8.94660359,216.21,216.12,20.0]
[1734547776166,8.94660359,216.2,216.13,8.94660359]
[1734547778105,1.1561,216.24,216.05,8.021]
[1734547778106,8.94660359,216.14,216.05,8.021]
[1734547778259,8.94660359,216.14,216.06,8.94660359]
[1734547778869,8.94660359,216.14,216.07,8.94660359]
[1734547779064,8.94660359,216.15,216.07,8.94660359]
[1734547779693,8.94660359,216.15,216.05,8.021]
[1734547779902,8.94660359,216.14,216.07,8.94660359]
[1734547780103,8.94660359,216.15,216.08,8.94660359]
[1734547780505,8.94660359,216.15,216.07,8.94660359]
[1734547781271,1.1563,216.2,216.08,8.94660359]
[1734547781587,8.94660359,216.19,216.11,8.94660359]
[1734547783065,8.94660359,216.16,216.09,8.94660359]
[1734547783266,8.94660359,216.16,216.1,23.776884]
[1734547783560,0.12549,216.21,216.06,36.04153716]
[1734547783561,8.94660359,216.15,216.06,23.776884]
[1734547783767,8.94660359,216.14,216.07,8.94660359]
[1734547783965,8.94660359,216.12,216.05,16.96760359]
[1734547784191,8.94660359,216.12,216.05,8.021]
[1734547786108,8.94660359,216.11,216.05,8.021]
[1734547786607,8.94660359,216.11,216.05,1.6306]
[1734547788878,8.94660359,216.12,216.05,10.57720359]
[1734547789424,20.0,216.16,216.07,8.94660359]
[1734547789577,8.94660359,216.14,216.07,8.94660359]
[1734547789777,8.94660359,216.15,216.08,8.94660359]
[1734547789978,8.94660359,216.16,216.08,8.94660359]
[1734547790780,8.94660359,216.16,216.09,8.94660359]
[1734547792591,8.94660359,216.19,216.11,8.94660359]
[1734547792817,8.94660359,216.2,216.12,8.94660359]
[1734547793015,8.94660359,216.19,216.12,8.94660359]
[1734547793604,6.2043,216.24,216.13,8.94660359]
[1734547793901,8.94660359,216.2,216.13,8.94660359]
[1734547797018,8.94660359,216.19,216.12,8.94660359]
[1734547797617,8.94660359,216.19,216.13,25.404684]
[1734547798420,0.12549,216.25,216.13,34.35128759]
[1734547798633,8.94660359,216.2,216.13,34.35128759]
[1734547800804,8.94660359,216.25,216.17,8.94660359]
[1734547801137,1.1558,216.29,216.19,8.94660359]
[1734547801300,6.3756,216.31,216.19,8.94660359]
[1734547801301,8.94660359,216.26,216.19,8.94660359]
[1734547802028,8.94660359,216.28,216.22,23.776884]
[1734547802536,8.94660359,216.29,216.22,32.72348759]
[1734547802899,8.94660359,216.29,216.22,23.776884]
[1734547803308,8.94660359,216.29,216.22,32.72348759]
[1734547804133,8.94660359,216.27,216.22,23.776884]
[1734547804334,8.94660359,216.25,216.21,1.6008]
[1734547805024,8.94660359,216.26,216.21,1.6008]
[1734547805331,8.94660359,216.27,216.21,1.6008]
[1734547806338,8.94660359,216.25,216.21,1.6008]
[1734547806940,8.94660359,216.26,216.21,1.6008]
[1734547809735,8.94660359,216.24,216.18,23.776884]
[1734547810048,8.94660359,216.25,216.18,32.72348759]
[1734547810257,0.12549,216.3,216.18,32.72348759]
[1734547810417,8.94660359,216.26,216.19,8.94660359]
[1734547810946,8.94660359,216.26,216.18,32.72348759]
[1734547811247,8.94660359,216.26,216.19,8.94660359]
[1734547811449,8.94660359,216.26,216.18,32.72348759]
[1734547812145,8.94660359,216.26,216.18,8.94660359]
[1734547812443,8.94660359,216.22,216.17,6.3279]
[1734547812643,1.1558,216.29,216.16,1.644]
[1734547812644,8.94660359,216.21,216.16,1.644]
[1734547812838,8.94660359,216.2,216.16,1.644]
[1734547813048,8.94660359,216.21,216.16,1.644]
[1734547813349,1.1558,216.29,216.16,1.644]
[1734547813350,8.94660359,216.22,216.16,1.644]
[1734547813645,8.94660359,216.21,216.16,1.644]
[1734547814145,8.94660359,216.22,216.16,1.644]
[1734547814526,8.94660359,216.24,216.17,23.776884]
[1734547814920,8.94660359,216.25,216.17,23.776884]
[1734547815241,8.94660359,216.27,216.19,32.72348759]
[1734547815741,2.7544,216.33,216.19,32.72348759]
[1734547815944,8.94660359,216.27,216.19,32.72348759]
[1734547816265,8.94660359,216.26,216.19,32.72348759]
[1734547818639,8.94660359,216.23,216.17,23.776884]
[1734547818951,8.94660359,216.23,216.16,1.644]
[1734547819551,8.94660359,216.23,216.16,10.59060359]
[1734547820050,8.94660359,216.23,216.17,23.776884]
[1734547821547,8.94660359,216.25,216.17,32.72348759]
[1734547822051,8.94660359,216.26,216.19,23.776884]
[1734547822541,8.94660359,216.27,216.2,23.776884]
[1734547822960,8.94660359,216.28,216.22,23.776884]
[1734547823124,8.94660359,216.29,216.22,32.72348759]
[1734547823658,8.94660359,216.31,216.24,32.72348759]
[1734547823834,8.94660359,216.31,216.24,23.776884]
[1734547824653,8.94660359,216.3,216.24,23.776884]
[1734547824839,8.94660359,216.31,216.24,23.776884]
[1734547826333,8.94660359,216.31,216.23,8.94660359]
[1734547826334,22.7871,216.39,216.27,23.776884]
[1734547826661,8.94660359,216.35,216.28,8.94660359]
[1734547826960,8.94660359,216.35,216.29,23.776884]
[1734547827638,8.94660359,216.36,216.29,32.72348759]
[1734547828153,8.94660359,216.34,216.29,23.776884]
[1734547828352,8.94660359,216.34,216.28,23.776884]
[1734547829781,8.94660359,216.33,216.26,32.72348759]
[1734547830848,8.94660359,216.34,216.27,8.94660359]
[1734547831061,20.12549,216.38,216.28,23.776884]
[1734547831244,8.94660359,216.3,216.26,23.776884]
[1734547832473,8.94660359,216.31,216.26,23.776884]
[1734547832677,8.94660359,216.29,216.24,23.776884]
[1734547832847,8.94660359,216.29,216.23,23.776884]
[1734547833051,8.94660359,216.29,216.22,23.776884]
[1734547833250,8.94660359,216.29,216.23,23.776884]
[1734547833975,8.94660359,216.29,216.21,32.72348759]
[1734547836472,0.12549,216.34,216.22,8.94660359]
[1734547836678,8.94660359,216.3,216.23,8.94660359]
[1734547837178,8.94660359,216.3,216.24,23.776884]
[1734547838075,8.94660359,216.3,216.21,23.776884]
[1734547838382,8.94660359,216.3,216.23,23.776884]
[1734547839647,8.94660359,216.31,216.23,32.72348759]
[1734547839852,8.94660359,216.31,216.2,8.1102]
[1734547839853,21.1553,216.38,216.26,8.94660359]
[1734547840061,8.94660359,216.34,216.27,23.776884]
[1734547841659,8.94660359,216.32,216.25,23.776884]
[1734547841858,8.94660359,216.31,216.24,23.776884]
[1734547842272,8.94660359,216.32,216.24,32.72348759]
[1734547842470,8.94660359,216.32,216.24,8.94660359]
[1734547842775,8.94660359,216.32,216.21,12.25624768]
[1734547843075,8.94660359,216.33,216.25,8.94660359]
[1734547843282,8.94660359,216.34,216.26,8.94660359]
[1734547844167,8.94660359,216.34,216.28,23.776884]
[1734547844853,1.88583472,216.44,216.28,23.776884]
[1734547844854,81.0,216.46,216.33,32.72348759]
[1734547845065,8.94660359,216.42,216.35,8.94660359]
[1734547846582,8.94660359,216.41,216.35,23.776884]
[1734547847080,8.94660359,216.4,216.35,23.776884]
[1734547847575,8.94660359,216.39,216.32,32.72348759]
[1734547848780,8.94660359,216.4,216.32,32.72348759]
[1734547849162,8.94660359,216.39,216.32,32.72348759]
[1734547849481,0.12549,216.43,216.32,32.72348759]
[1734547849482,8.94660359,216.4,216.32,32.72348759]
[1734547849665,8.94660359,216.39,216.32,32.72348759]
[1734547851180,8.94660359,216.38,216.31,8.94660359]
[1734547851565,8.94660359,216.38,216.32,23.776884]
[1734547854796,8.94660359,216.39,216.32,32.72348759]
[1734547855080,0.12549,216.43,216.32,32.72348759]
[1734547855388,8.94660359,216.4,216.34,23.776884]
[1734547855884,8.34165527,216.52,216.38,20.0]
[1734547856095,8.94660359,216.49,216.42,32.72348759]
[1734547856461,8.94660359,216.51,216.43,8.94660359]
[1734547856661,8.94660359,216.5,216.43,8.94660359]
[1734547856973,8.94660359,216.52,216.44,32.72348759]
[1734547857299,8.94660359,216.54,216.47,8.94660359]
[1734547857507,8.94660359,216.57,216.5,23.776884]
[1734547857666,8.94660359,216.57,216.51,23.776884]
[1734547857979,10.31820361,216.61,216.45,19.84815163]
[1734547857980,8.94660359,216.56,216.49,23.776884]
[1734547858170,8.94660359,216.55,216.49,23.776884]
[1734547858865,1.154,216.62,216.49,23.776884]
[1734547859066,8.94660359,216.56,216.49,23.776884]
[1734547859388,8.94660359,216.55,216.49,23.776884]
[1734547860487,13.95721893,216.55,216.49,23.776884]
[1734547860680,13.95721893,216.56,216.49,23.776884]
[1734547861385,13.95721893,216.55,216.49,23.776884]
[1734547864978,13.95721893,216.55,216.46,13.95721893]
[1734547865178,13.95721893,216.55,216.47,23.776884]
[1734547865497,13.95721893,216.55,216.47,13.95721893]
[1734547865789,13.95721893,216.55,216.48,23.776884]
[1734547866521,13.95721893,216.51,216.46,23.776884]
[1734547866675,13.95721893,216.51,216.45,15.46121893]
[1734547866877,13.95721893,216.53,216.45,15.46121893]
[1734547867397,13.95721893,216.53,216.46,23.776884]
[1734547867606,13.95721893,216.52,216.45,1.504]
[1734547867906,13.95721893,216.52,216.44,13.95721893]
[1734547869001,13.95721893,216.49,216.42,13.95721893]
[1734547869802,13.95721893,216.49,216.43,23.776884]
[1734547870719,13.95721893,216.47,216.4,1.5873]
[1734547871001,13.95721893,216.44,216.39,0.1419292]
[1734547871177,13.95721893,216.43,216.39,0.1419292]
[1734547871774,13.95721893,216.44,216.39,0.1419292]
[1734547873202,13.95721893,216.46,216.39,23.9188132]
[1734547873402,13.95721893,216.47,216.4,13.95721893]
[1734547873620,13.95721893,216.48,216.41,13.95721893]
[1734547874921,13.95721893,216.5,216.42,37.73410293]
[1734547875101,13.95721893,216.5,216.44,13.95721893]
[1734547875285,13.95721893,216.53,216.45,37.73410293]
[1734547875486,13.95721893,216.53,216.46,23.776884]
[1734547875689,13.95721893,216.53,216.46,37.73410293]
[1734547876019,13.95721893,216.55,216.49,23.776884]
[1734547879122,13.95721893,216.55,216.46,13.95721893]
[1734547879820,13.95721893,216.55,216.47,23.776884]
[1734547880820,13.95721893,216.53,216.47,23.776884]
[1734547881027,13.95721893,216.53,216.46,23.776884]
[1734547882226,13.95721893,216.53,216.46,37.73410293]
[1734547885423,13.95721893,216.55,216.46,37.73410293]
[1734547886131,1.1544,216.56,216.46,32.71114219]
[1734547886132,8.93425819,216.54,216.46,32.71114219]
[1734547888224,20.0,216.58,216.48,8.93425819]
[1734547888430,8.93425819,216.56,216.49,23.776884]
[1734547890140,1.1541,216.62,216.51,23.776884]
[1734547890439,8.93425819,216.59,216.51,23.776884]
[1734547890844,8.93425819,216.57,216.51,23.776884]
[1734547891844,8.93425819,216.55,216.46,20.0]
[1734547892035,8.93425819,216.53,216.45,10.57735819]
[1734547892744,8.93425819,216.51,216.45,1.6431]
[1734547893241,8.93425819,216.52,216.45,1.6431]
[1734547893644,8.93425819,216.51,216.45,1.6431]
[1734547894125,13.96416897,216.52,216.45,1.6431]
[1734547894639,13.96416897,216.52,216.45,15.60726897]
[1734547895158,13.96416897,216.53,216.45,15.60726897]
[1734547896847,13.96416897,216.55,216.47,13.96416897]
[1734547897051,13.96416897,216.55,216.48,13.96416897]
[1734547897250,13.96416897,216.56,216.5,13.96416897]
[1734547897473,13.96416897,216.58,216.5,13.96416897]
[1734547897946,13.96416897,216.58,216.49,23.776884]
[1734547897947,13.96416897,216.6,216.52,13.96416897]